bitfinex/quotes_BTCUSD_20241027
["timestamp","ask_amount","ask_price","bid_price","bid_amount"]
[1729993262065,0.37658893,67016.0,67015.0,0.001642]
[1729993262279,0.61644091,67016.0,67015.0,0.001642]
[1729993262487,0.52709274,67016.0,67015.0,0.001642]
[1729993262697,0.76515488,67016.0,67015.0,0.001642]
[1729993262886,0.10515111,67010.0,67009.0,0.22240179]
[1729993263141,0.14982307,67010.0,67009.0,0.22240179]
[1729993263382,0.00177455,67008.0,67007.0,0.02085006]
[1729993263841,0.00177455,67006.0,67005.0,0.149241]
[1729993264284,0.00974297,67006.0,67005.0,0.149241]
[1729993264505,0.00177455,67006.0,67005.0,0.149241]
[1729993264731,0.00974297,67006.0,67005.0,0.149241]
[1729993264962,0.00177455,67006.0,67005.0,0.149241]
[1729993265171,0.00974297,67006.0,67005.0,0.149241]
[1729993265386,0.00177455,67006.0,67005.0,0.149241]
[1729993265591,0.00974297,67006.0,67005.0,0.149241]
[1729993265811,0.00177455,67006.0,67005.0,0.149241]
[1729993266238,0.00177455,67005.0,67004.0,0.149244]
[1729993266712,0.00974173,67005.0,67004.0,0.328744]
[1729993266934,0.00177455,67005.0,67004.0,0.328744]
[1729993268472,0.00177455,67005.0,67004.0,0.1795]
[1729993268914,0.00177455,67005.0,67004.0,0.328744]
[1729993269809,0.00177455,67006.0,67005.0,0.149242]
[1729993270032,0.00177455,67006.0,67005.0,0.15222651]
[1729993271164,0.00177455,67006.0,67005.0,0.149242]
[1729993272951,0.00177455,67006.0,67005.0,0.150886]
[1729993275256,0.00177455,67006.0,67005.0,0.001644]
[1729993275476,0.00177455,67006.0,67005.0,0.150886]
[1729993275909,0.00974018,67006.0,67005.0,0.150886]
[1729993276119,0.00177455,67006.0,67005.0,0.150886]
[1729993276327,0.00974018,67006.0,67005.0,0.150886]
[1729993276548,0.00177455,67006.0,67005.0,0.001644]
[1729993276984,0.00974018,67006.0,67005.0,0.001644]
[1729993278791,0.00974018,67006.0,67005.0,0.150886]
[1729993279909,0.00177455,67006.0,67005.0,0.150886]
[1729993289625,0.00177455,67006.0,67005.0,0.230586]
[1729993289869,0.00177455,67010.0,67009.0,0.149233]
[1729993290556,0.00974497,67010.0,67009.0,0.149233]
[1729993290761,0.00177455,67010.0,67009.0,0.149233]
[1729993294121,0.00177455,67010.0,67009.0,0.24731745]
[1729993294334,0.00177455,67010.0,67009.0,0.149233]
[1729993294750,0.00974497,67010.0,67009.0,0.149233]
[1729993294964,0.00177455,67010.0,67009.0,0.149233]
[1729993295190,0.00974497,67010.0,67009.0,0.149233]
[1729993295403,0.00177455,67010.0,67009.0,0.149233]
[1729993295609,0.00974525,67010.0,67009.0,0.149233]
[1729993295820,0.00177455,67010.0,67009.0,0.149233]
[1729993296033,0.00974525,67010.0,67009.0,0.149233]
[1729993296235,0.00177455,67008.0,67007.0,0.149236]
[1729993296469,0.0446713,67012.0,67006.0,0.149239]
[1729993296470,0.00177455,67007.0,67006.0,0.149239]
[1729993297108,0.00974235,67007.0,67006.0,0.149239]
[1729993297319,0.00177455,67007.0,67006.0,0.149239]
[1729993297542,0.10015111,67007.0,67006.0,0.149239]
[1729993297799,0.10811891,67007.0,67006.0,0.14924]
[1729993298239,0.15279021,67007.0,67006.0,0.14924]
[1729993301045,0.15284559,67007.0,67006.0,0.14924]
[1729993301475,0.10811891,67007.0,67006.0,0.14924]
[1729993301932,0.20151891,67007.0,67005.0,0.001644]
[1729993302156,0.06709003,67006.0,67005.0,0.001644]
[1729993302376,0.17311504,67006.0,67005.0,0.001644]
[1729993302607,0.26256841,67006.0,67005.0,0.001644]
[1729993303087,0.17311664,67006.0,67005.0,0.001644]
[1729993303303,0.26257003,67006.0,67005.0,0.001644]
[1729993303516,0.26257003,67006.0,67005.0,0.150886]
[1729993303517,0.17311666,67006.0,67005.0,0.150886]
[1729993303935,0.26257003,67006.0,67005.0,0.150886]
[1729993305406,0.17311666,67006.0,67005.0,0.150886]
[1729993305812,0.26269958,67006.0,67005.0,0.150886]
[1729993306022,0.17318436,67006.0,67005.0,0.150886]
[1729993306667,0.26269678,67006.0,67005.0,0.150886]
[1729993306869,0.26269678,67006.0,67005.0,0.001644]
[1729993307289,0.26270091,67006.0,67005.0,0.001644]
[1729993307696,0.26270091,67006.0,67005.0,0.150886]
[1729993309013,0.17318436,67006.0,67005.0,0.150886]
[1729993309243,0.26270042,67006.0,67005.0,0.150886]
[1729993309892,0.29402556,67006.0,67005.0,0.001644]
[1729993310553,0.25765755,67006.0,67005.0,0.001644]
[1729993310751,0.29402191,67006.0,67005.0,0.001644]
[1729993310970,0.39302191,67006.0,67005.0,0.001644]
[1729993312504,0.22780473,67006.0,67005.0,0.001644]
[1729993313231,0.39300583,67006.0,67005.0,0.001644]
[1729993314483,0.22780473,67006.0,67005.0,0.001644]
[1729993314721,0.3930094,67006.0,67005.0,0.001644]
[1729993316236,0.64188977,67006.0,67005.0,0.001644]
[1729993317346,0.4766851,67006.0,67005.0,0.001644]
[1729993317804,0.45430703,67006.0,67005.0,0.001644]
[1729993318011,0.47665907,67006.0,67005.0,0.001644]
[1729993319825,0.64179297,67006.0,67005.0,0.001644]
[1729993320291,0.55909297,67006.0,67005.0,0.001644]
[1729993320542,0.46071641,67006.0,67005.0,0.001644]
[1729993321027,0.46571227,67006.0,67005.0,0.001644]
[1729993321243,0.46570458,67006.0,67005.0,0.001644]
[1729993321467,0.57753025,67006.0,67005.0,0.001644]
[1729993321886,0.57253025,67006.0,67005.0,0.001644]
[1729993322104,0.32302644,67006.0,67005.0,0.001644]
[1729993323001,0.32300814,67006.0,67005.0,0.001644]
[1729993324111,0.32301834,67006.0,67005.0,0.001644]
[1729993326449,0.30064591,67006.0,67005.0,0.001644]
[1729993326669,0.21119658,67006.0,67005.0,0.001644]
[1729993327090,0.30064591,67006.0,67005.0,0.001644]
[1729993327527,0.21119658,67006.0,67005.0,0.001644]
[1729993327747,0.2112198,67006.0,67005.0,0.001644]
[1729993328629,0.3006653,67006.0,67005.0,0.150886]
[1729993328869,0.11319115,67006.0,67005.0,0.150886]
[1729993329309,0.04610798,67006.0,67005.0,0.150886]
[1729993330212,0.09082941,67006.0,67005.0,0.150886]
[1729993330423,0.09082926,67006.0,67005.0,0.001644]
[1729993330643,0.11318991,67006.0,67005.0,0.001644]
[1729993331101,0.0908301,67006.0,67005.0,0.001644]
[1729993331324,0.04610798,67006.0,67005.0,0.001644]
[1729993331788,0.11318991,67006.0,67005.0,0.001644]
[1729993332222,0.04610798,67006.0,67005.0,0.001644]
[1729993332665,0.11318991,67006.0,67005.0,0.001644]
[1729993335138,0.07683223,67006.0,67005.0,0.001644]
[1729993335343,0.11320437,67006.0,67005.0,0.001644]
[1729993337734,0.11321823,67006.0,67005.0,0.001644]
[1729993338189,0.04611251,67006.0,67005.0,0.001644]
[1729993338409,0.13556833,67006.0,67005.0,0.001644]
[1729993338629,0.30076173,67006.0,67005.0,0.001644]
[1729993340027,0.3007816,67006.0,67005.0,0.001644]
[1729993340454,0.2112891,67006.0,67005.0,0.001644]
[1729993340895,0.13561688,67006.0,67005.0,0.001644]
[1729993341120,0.30079347,67006.0,67005.0,0.001644]
[1729993341343,0.2112891,67006.0,67005.0,0.001644]
[1729993341795,0.32315473,67006.0,67005.0,0.001644]
[1729993342024,0.2112891,67006.0,67005.0,0.001644]
[1729993342238,0.30080236,67006.0,67005.0,0.001644]
[1729993342664,0.30080035,67006.0,67005.0,0.001644]
[1729993343111,0.32315272,67006.0,67005.0,0.001644]
[1729993346208,0.21128709,67006.0,67005.0,0.001644]
[1729993346418,0.21129247,67006.0,67005.0,0.001644]
[1729993346656,0.2336774,67006.0,67005.0,0.001644]
[1729993346892,0.21129247,67006.0,67005.0,0.001644]
[1729993350422,0.21130636,67006.0,67005.0,0.001644]
[1729993351845,0.00177455,66996.0,66995.0,0.22240179]
[1729993352073,0.12771429,66996.0,66995.0,0.22240179]
[1729993352318,0.12770323,66996.0,66995.0,0.22240179]
[1729993352520,0.00177455,66994.0,66993.0,0.15091]
[1729993352734,0.20369479,66994.0,66993.0,0.15091]
[1729993352940,0.21205856,66994.0,66993.0,0.15091]
[1729993353364,0.21205856,66994.0,66993.0,0.001642]
[1729993353574,0.38405238,66994.0,66993.0,0.001642]
[1729993354003,0.47359142,66994.0,66993.0,0.001642]
[1729993354712,0.37521486,66994.0,66993.0,0.001642]
[1729993356233,0.28567582,66994.0,66993.0,0.001642]
[1729993356443,0.12043424,66994.0,66993.0,0.001642]
[1729993357297,0.37512784,66994.0,66993.0,0.001642]
[1729993357710,0.36113192,66994.0,66993.0,0.001642]
[1729993357925,0.37510863,66994.0,66993.0,0.001642]
[1729993359215,0.28556959,66994.0,66993.0,0.001642]
[1729993360338,0.12041503,66994.0,66993.0,0.001642]
[1729993361638,0.1204082,66994.0,66993.0,0.001642]
[1729993361893,0.18748994,66994.0,66993.0,0.001642]
[1729993362334,0.0241082,66994.0,66993.0,0.001642]
[1729993363221,0.06882539,66994.0,66993.0,0.001642]
[1729993363645,0.06882539,66994.0,66993.0,0.150911]
[1729993363861,0.06882539,66994.0,66993.0,0.001642]
[1729993364539,0.06882539,66994.0,66993.0,0.150911]
[1729993365435,0.01013832,66994.0,66993.0,0.150911]
[1729993365659,0.02410727,66994.0,66993.0,0.150911]
[1729993366537,0.02410727,66994.0,66993.0,0.001642]
[1729993367802,0.01013832,66994.0,66993.0,0.001642]
[1729993368450,0.05485151,66994.0,66993.0,0.001642]
[1729993369281,0.01013832,66994.0,66993.0,0.001642]
[1729993369497,0.05485151,66994.0,66993.0,0.001642]
[1729993369712,0.06882161,66994.0,66993.0,0.001642]
[1729993369955,0.05485151,66994.0,66993.0,0.001642]
[1729993370842,0.06882165,66994.0,66993.0,0.001642]
[1729993372788,0.02411102,66994.0,66993.0,0.001642]
[1729993373206,0.06881204,66994.0,66993.0,0.001642]
[1729993375548,0.02411102,66994.0,66993.0,0.001642]
[1729993380155,0.01013832,66994.0,66993.0,0.001642]
[1729993380355,0.02412696,66994.0,66993.0,0.001642]
[1729993383045,0.01576319,66994.0,66993.0,0.001642]
[1729993383689,0.01576319,66994.0,66993.0,0.150911]
[1729993383908,0.01576319,66994.0,66993.0,0.001642]
[1729993384124,0.01576319,66994.0,66993.0,0.150911]
[1729993384345,0.02411569,66994.0,66993.0,0.150911]
[1729993384554,0.01576319,66994.0,66993.0,0.150911]
[1729993385841,0.01576319,66994.0,66993.0,0.001642]
[1729993386297,0.01577636,66994.0,66993.0,0.001642]
[1729993387769,0.02412869,66994.0,66993.0,0.001642]
[1729993391836,0.01577636,66994.0,66993.0,0.001642]
[1729993400901,0.01012796,66994.0,66993.0,0.001642]
[1729993401115,0.18952195,66994.0,66993.0,0.001642]
[1729993402202,0.1895206,66994.0,66993.0,0.001642]
[1729993404192,0.1895206,66994.0,66993.0,0.150911]
[1729993405553,0.1895206,66994.0,66993.0,0.001642]
[1729993407486,0.18952027,66994.0,66993.0,0.001642]
[1729993411018,0.18953183,66994.0,66993.0,0.001642]
[1729993411927,0.17553013,66994.0,66993.0,0.001642]
[1729993412147,0.18953152,66994.0,66993.0,0.001642]
[1729993415129,0.30155154,66994.0,66993.0,0.001642]
[1729993415338,0.18953152,66994.0,66993.0,0.001642]
[1729993415816,0.18952827,66994.0,66993.0,0.001642]
[1729993420676,0.18952534,66994.0,66993.0,0.001642]
[1729993425322,0.18952837,66994.0,66993.0,0.001642]
[1729993429126,0.18952837,66994.0,66993.0,0.150911]
[1729993429752,0.13614865,66994.0,66993.0,0.150911]
[1729993429968,0.301548,66994.0,66993.0,0.150911]
[1729993430174,0.18952913,66994.0,66993.0,0.150911]
[1729993431467,0.17552731,66994.0,66993.0,0.150911]
[1729993432106,0.28754694,66994.0,66993.0,0.150911]
[1729993432343,0.30154838,66994.0,66993.0,0.150911]
[1729993432574,0.18952875,66994.0,66993.0,0.150911]
[1729993432788,0.17552731,66994.0,66993.0,0.150911]
[1729993433202,0.28754694,66994.0,66993.0,0.150911]
[1729993434720,0.30154932,66994.0,66993.0,0.150911]
[1729993434945,0.30152559,66994.0,66993.0,0.150911]
[1729993436271,0.28752321,66994.0,66993.0,0.150911]
[1729993436492,0.30152526,66994.0,66993.0,0.150911]
[1729993439765,0.30152552,66994.0,66993.0,0.150911]
[1729993441996,0.18951724,66994.0,66993.0,0.150911]
[1729993442893,0.1895166,66994.0,66993.0,0.150911]
[1729993443583,0.1895166,66994.0,66993.0,0.41808756]
[1729993443584,0.18774205,66994.0,66993.0,0.41808756]
[1729993443839,0.06715822,66994.0,66993.0,0.41808756]
[1729993444069,0.01400141,66994.0,66993.0,0.41808756]
[1729993444276,0.02235573,66994.0,66993.0,0.41808756]
[1729993446270,0.02234719,66994.0,66993.0,0.41808756]
[1729993446525,0.01399287,66994.0,66993.0,0.41808756]
[1729993449788,0.00177455,66997.0,66996.0,0.149262]
[1729993450221,0.02410783,66997.0,66996.0,0.149262]
[1729993450888,0.01576042,66997.0,66996.0,0.149262]
[1729993451802,0.02410717,66997.0,66993.0,0.001642]
[1729993452032,0.00177455,66995.0,66993.0,0.001642]
[1729993452236,0.01398587,66994.0,66993.0,0.001642]
[1729993452438,0.02233917,66994.0,66993.0,0.001642]
[1729993453312,0.02411372,66994.0,66993.0,0.001642]
[1729993453535,0.11481321,66994.0,66993.0,0.001642]
[1729993456103,0.11481168,66994.0,66993.0,0.001642]
[1729993457185,0.11481143,66994.0,66993.0,0.001642]
[1729993458935,0.11481143,66994.0,66993.0,0.150911]
[1729993459203,0.11481143,66994.0,66993.0,0.001642]
[1729993459419,0.11481143,66994.0,66993.0,0.150911]
[1729993460280,0.10645813,66994.0,66993.0,0.150911]
[1729993463533,0.27166392,66994.0,66993.0,0.150911]
[1729993463974,0.36952226,66994.0,66993.0,0.150911]
[1729993464399,0.28001332,66994.0,66993.0,0.150911]
[1729993464843,0.36952142,66994.0,66993.0,0.150911]
[1729993467853,0.35553784,66994.0,66993.0,0.150911]
[1729993468058,0.36951838,66994.0,66993.0,0.150911]
[1729993468730,0.28001028,66994.0,66993.0,0.150911]
[1729993469177,0.3695165,66994.0,66993.0,0.150911]
[1729993469620,0.28001028,66994.0,66993.0,0.150911]
[1729993469856,0.36951604,66994.0,66993.0,0.150911]
[1729993471365,0.28001028,66994.0,66993.0,0.150911]
[1729993471581,0.2800009,66994.0,66993.0,0.001642]
[1729993472054,0.39187769,66994.0,66993.0,0.001642]
[1729993475146,0.39187699,66994.0,66993.0,0.001642]
[1729993476324,0.2800002,66994.0,66993.0,0.001642]
[1729993476539,0.39187699,66994.0,66993.0,0.001642]
[1729993478104,0.2800002,66994.0,66993.0,0.001642]
[1729993479485,0.39187699,66994.0,66993.0,0.001642]
[1729993480998,0.39185566,66994.0,66993.0,0.001642]
[1729993481213,0.27999161,66994.0,66993.0,0.001642]
[1729993481429,0.39185566,66994.0,66993.0,0.001642]
[1729993482266,0.26599822,66994.0,66993.0,0.001642]
[1729993482512,0.27999833,66994.0,66993.0,0.001642]
[1729993486846,0.66636914,66994.0,66993.0,0.001642]
[1729993487067,0.84634463,66994.0,66993.0,0.001642]
[1729993487283,0.71410776,66994.0,66993.0,0.001642]
[1729993487945,0.84829778,66994.0,66993.0,0.001642]
[1729993488593,0.71410776,66994.0,66993.0,0.001642]
[1729993489272,0.81248432,66994.0,66993.0,0.001642]
[1729993489492,0.86461157,66994.0,66993.0,0.001642]
[1729993489717,0.96298813,66994.0,66993.0,0.001642]
[1729993489935,1.09598813,66994.0,66993.0,0.001642]
[1729993490200,1.09598813,66994.0,66978.0,0.22240179]
[1729993490201,0.00177455,66979.0,66978.0,0.22240179]
[1729993490403,0.35520927,66979.0,66978.0,0.22240179]
[1729993490612,0.3630813,66979.0,66978.0,0.22240179]
[1729993490816,0.3630813,66979.0,66976.0,0.000844]
[1729993491029,0.04470504,66977.0,66976.0,0.000844]
[1729993491239,0.01577466,66977.0,66976.0,0.000844]
[1729993491674,0.02364669,66977.0,66976.0,0.000844]
[1729993494119,0.02364669,66977.0,66973.0,0.16563969]
[1729993494340,0.00177455,66974.0,66973.0,0.16563969]
[1729993494769,0.00964658,66974.0,66973.0,0.16563969]
[1729993496073,0.02361202,66974.0,66973.0,0.16563969]
[1729993496284,0.00964658,66974.0,66973.0,0.01632769]
[1729993498339,0.02361157,66974.0,66973.0,0.01632769]
[1729993498541,0.02361157,66974.0,66973.0,0.16564069]
[1729993498990,0.02361157,66974.0,66973.0,0.01632769]
[1729993499724,0.02360711,66974.0,66973.0,0.01632769]
[1729993500711,0.02360711,66974.0,66973.0,0.16564069]
[1729993501291,0.02360711,66974.0,66973.0,0.24784069]
[1729993501497,0.01573508,66974.0,66973.0,0.25082686]
[1729993501694,0.00177455,66974.0,66973.0,0.25082661]
[1729993501931,0.00177455,66974.0,66973.0,0.24784069]
[1729993504461,0.00177455,66974.0,66973.0,0.2508266]
[1729993505082,0.00177455,66974.0,66973.0,0.24784069]
[1729993505288,0.00177455,66974.0,66973.0,0.2508266]
[1729993506198,0.00177455,66974.0,66973.0,0.3434266]
[1729993506400,0.00177455,66974.0,66973.0,0.34044069]
[1729993507036,0.00177455,66974.0,66973.0,0.34208269]
[1729993510467,0.00177455,66976.0,66975.0,0.149309]
[1729993511795,0.01574571,66976.0,66975.0,0.149309]
[1729993512024,0.00177455,66976.0,66975.0,0.149309]
[1729993512944,0.01574571,66976.0,66973.0,0.083842]
[1729993513176,0.01397612,66975.0,66973.0,0.001642]
[1729993513403,0.01575067,66974.0,66973.0,0.001642]
[1729993513847,0.02361914,66974.0,66973.0,0.001642]
[1729993519731,0.02444114,66974.0,66973.0,0.001642]
[1729993519948,0.02444902,66974.0,66973.0,0.001642]
[1729993521941,0.06912516,66974.0,66973.0,0.001642]
[1729993522164,0.02444902,66974.0,66973.0,0.001642]
[1729993523231,0.06912516,66974.0,66973.0,0.001642]
[1729993523446,0.10504902,66974.0,66973.0,0.001642]
[1729993523916,0.10505239,66974.0,66973.0,0.001642]
[1729993524355,0.1720666,66974.0,66973.0,0.001642]
[1729993524574,0.10505239,66974.0,66973.0,0.001642]
[1729993525271,0.1720666,66974.0,66973.0,0.001642]
[1729993526119,0.53912657,66974.0,66973.0,0.001642]
[1729993526343,0.72427595,66974.0,66973.0,0.001642]
[1729993526772,0.66810737,66974.0,66973.0,0.001642]
[1729993527479,0.65412,66974.0,66973.0,0.001642]
[1729993527743,0.66809819,66974.0,66973.0,0.001642]
[1729993527948,0.66809827,66974.0,66973.0,0.001642]
[1729993529077,0.67809827,66974.0,66973.0,0.001642]
[1729993529298,0.68009827,66974.0,66973.0,0.001642]
[1729993529520,0.72576729,66974.0,66973.0,0.001642]
[1729993529728,0.67809827,66974.0,66973.0,0.001642]
[1729993530373,0.67309827,66974.0,66973.0,0.001642]
[1729993530600,0.66809827,66974.0,66973.0,0.001642]
[1729993530818,0.67809827,66974.0,66973.0,0.001642]
[1729993531023,0.68109827,66974.0,66973.0,0.001642]
[1729993531470,0.68209827,66974.0,66973.0,0.001642]
[1729993531697,0.68409827,66974.0,66973.0,0.001642]
[1729993531903,0.7287309,66974.0,66973.0,0.001642]
[1729993532351,0.7307309,66974.0,66973.0,0.001642]
[1729993532582,0.68509827,66974.0,66973.0,0.001642]
[1729993534684,0.81913581,66974.0,66973.0,0.001642]
[1729993535125,0.91551237,66974.0,66973.0,0.001642]
[1729993535334,0.78147483,66974.0,66973.0,0.001642]
[1729993535553,0.91550226,66974.0,66973.0,0.001642]
[1729993536856,0.78147483,66974.0,66973.0,0.001642]
[1729993538609,0.67309827,66974.0,66973.0,0.001642]
[1729993538836,0.68309827,66974.0,66973.0,0.001642]
[1729993539071,0.29268346,66974.0,66973.0,0.001642]
[1729993539291,0.31115302,66974.0,66973.0,0.001642]
[1729993539976,0.31099331,66974.0,66973.0,0.001642]
[1729993540412,0.30599331,66974.0,66973.0,0.001642]
[1729993540856,0.30599302,66974.0,66973.0,0.001642]
[1729993541730,0.19432625,66974.0,66973.0,0.001642]
[1729993541975,0.09644437,66974.0,66973.0,0.001642]
[1729993542195,0.07211187,66974.0,66973.0,0.001642]
[1729993542836,0.06911187,66974.0,66973.0,0.001642]
[1729993543903,0.02444329,66974.0,66973.0,0.001642]
[1729993544417,0.06911746,66974.0,66973.0,0.001642]
[1729993544657,0.02444329,66974.0,66973.0,0.001642]
[1729993545332,0.06911764,66974.0,66973.0,0.001642]
[1729993545805,0.02443881,66974.0,66973.0,0.001642]
[1729993549689,0.09143989,66974.0,66973.0,0.001642]
[1729993550132,0.0914699,66974.0,66973.0,0.001642]
[1729993552759,0.02266426,66974.0,66973.0,0.079142]
[1729993552993,0.0244457,66974.0,66973.0,0.079142]
[1729993553465,0.01480268,66974.0,66973.0,0.079142]
[1729993553934,0.01657723,66974.0,66973.0,0.079142]
[1729993555322,0.01480268,66974.0,66973.0,0.23144105]
[1729993555561,0.01480268,66974.0,66973.0,0.228455]
[1729993556236,0.000822,66974.0,66973.0,0.228455]
[1729993557145,0.01480268,66974.0,66973.0,0.228455]
[1729993557572,0.000822,66974.0,66973.0,0.228455]
[1729993558652,0.0147928,66974.0,66973.0,0.228455]
[1729993558871,0.000822,66974.0,66973.0,0.228455]
[1729993560863,0.01656457,66974.0,66973.0,0.228455]
[1729993562856,0.00259655,66974.0,66973.0,0.228455]
[1729993563085,0.01656578,66974.0,66973.0,0.228455]
[1729993564189,0.01479123,66974.0,66973.0,0.228455]
[1729993564627,0.000822,66974.0,66973.0,0.228455]
[1729993567066,0.00259655,66974.0,66973.0,0.228455]
[1729993567585,0.000822,66974.0,66973.0,0.228455]
[1729993567795,0.00259655,66974.0,66973.0,0.228455]
[1729993573803,0.000822,66974.0,66973.0,0.228455]
[1729993575098,0.000822,66974.0,66973.0,0.32981744]
[1729993575308,0.000822,66974.0,66973.0,0.32683156]
[1729993578578,0.000822,66974.0,66973.0,0.47733537]
[1729993579031,0.000822,66974.0,66973.0,0.57733537]
[1729993579237,0.000822,66974.0,66973.0,0.67033537]
[1729993579910,0.000822,66974.0,66973.0,0.71633145]
[1729993580205,0.000822,66974.0,66973.0,0.81470801]
[1729993580431,0.000822,66974.0,66973.0,0.71633145]
[1729993580656,0.000822,66974.0,66973.0,0.7195569]
[1729993580871,0.000822,66974.0,66973.0,0.73117004]
[1729993581563,0.000822,66974.0,66973.0,0.68517396]
[1729993582448,0.000822,66974.0,66973.0,0.69017396]
[1729993582909,0.000822,66974.0,66973.0,0.69517396]
[1729993584671,0.000822,66974.0,66973.0,0.79355052]
[1729993584879,0.000822,66974.0,66973.0,0.69517396]
[1729993585954,0.000822,66974.0,66973.0,0.79355052]
[1729993586391,0.000822,66974.0,66973.0,0.69517396]
[1729993588650,0.000822,66974.0,66973.0,0.68694851]
[1729993588866,0.000822,66974.0,66973.0,0.69517396]
[1729993591605,0.000822,66974.0,66973.0,0.79355052]
[1729993596505,0.000822,66974.0,66973.0,0.79555052]
[1729993599782,0.000822,66974.0,66973.0,0.79355052]
[1729993599993,0.000822,66974.0,66973.0,0.79555052]
[1729993600404,0.000822,66974.0,66973.0,0.79355052]
[1729993600624,0.000822,66974.0,66973.0,0.5967974]
[1729993600840,0.000822,66974.0,66973.0,0.79355052]
[1729993601057,0.000822,66974.0,66973.0,0.8395466]
[1729993603040,0.000822,66974.0,66973.0,0.8625466]
[1729993603266,0.000822,66974.0,66973.0,0.8645466]
[1729993603472,0.000822,66974.0,66973.0,0.8625466]
[1729993606281,0.000822,66974.0,66973.0,0.8645466]
[1729993608694,0.000822,66974.0,66973.0,0.8625466]
[1729993611717,0.000822,66974.0,66973.0,0.8645466]
[1729993619075,0.000822,66974.0,66973.0,0.9092115]
[1729993619964,0.000822,66974.0,66973.0,0.8645466]
[1729993620190,0.000822,66974.0,66973.0,1.01704174]
[1729993620401,0.000822,66974.0,66973.0,1.10637859]
[1729993621273,0.0967,66987.0,66985.0,0.005]
[1729993621473,0.0967,66987.0,66986.0,0.49816437]
[1729993621896,0.0967,66987.0,66986.0,0.50316437]
[1729993622072,0.0905,66996.0,66987.0,0.298565]
[1729993622329,0.0905,66996.0,66995.0,0.149264]
[1729993626269,0.0905,66996.0,66995.0,0.50112932]
[1729993626488,0.11263132,67005.0,66995.0,0.50112932]
[1729993626489,0.0814,67001.0,67000.0,0.149253]
[1729993626713,0.0814,67001.0,67000.0,0.24762956]
[1729993626928,0.1719,67001.0,67000.0,0.39813337]
[1729993629362,0.1719,67001.0,67000.0,0.40956533]
[1729993630453,0.0905,67001.0,67000.0,0.60794189]
[1729993630677,0.082222,67005.0,67000.0,0.60794189]
[1729993630678,0.000822,67005.0,67004.0,0.249244]
[1729993630886,0.000822,67005.0,67004.0,0.50312437]
[1729993631105,0.00885949,67005.0,67004.0,0.51134982]
[1729993631327,0.000822,67005.0,67004.0,0.51134982]
[1729993633098,0.000822,67005.0,67004.0,0.5573459]
[1729993637032,0.000822,67005.0,67004.0,0.51134982]
[1729993637432,0.000822,67005.0,67004.0,0.41297326]
[1729993637634,0.000822,67005.0,67004.0,0.51134982]
[1729993647595,0.0981,67013.0,67012.0,0.15245245]
[1729993647823,0.080722,67015.0,67012.0,0.15245245]
[1729993647824,0.000822,67015.0,67014.0,0.26244745]
[1729993648065,0.000822,67015.0,67014.0,0.41593523]
[1729993648291,0.000822,67015.0,67014.0,0.45894734]
[1729993648292,0.00815625,67015.0,67014.0,0.45894734]
[1729993648506,0.000822,67015.0,67014.0,0.41295126]
[1729993650130,0.000822,67015.0,67014.0,0.63535305]
[1729993650374,0.000822,67016.0,67014.0,0.63535305]
[1729993650375,0.000822,67016.0,67015.0,0.48419857]
[1729993650602,1e-06,67016.0,67015.0,0.63470238]
[1729993652214,1e-06,67016.0,67015.0,0.63270238]
[1729993654466,1e-06,67016.0,67015.0,0.63470238]
[1729993655190,1e-06,67016.0,67015.0,0.63270238]
[1729993657644,0.0965,67031.0,67030.0,0.55078145]
[1729993657870,0.00346455,67048.0,67033.0,0.1]
[1729993657871,0.0795,67037.0,67033.0,0.1]
[1729993658090,0.0795,67037.0,67034.0,0.24888037]
[1729993658517,0.0795,67037.0,67036.0,0.149173]
[1729993658754,0.0795,67037.0,67036.0,0.29967681]
[1729993660767,0.176,67037.0,67036.0,0.29967681]
[1729993662327,0.176,67037.0,67036.0,0.3113899]
[1729993662985,0.176,67037.0,67036.0,0.4113899]
[1729993665855,0.0965,67037.0,67036.0,0.41461535]
[1729993666137,0.1661,67042.0,67040.0,0.249164]
[1729993666361,0.1661,67042.0,67040.0,0.50102722]
[1729993666572,0.1661,67042.0,67040.0,0.49804437]
[1729993667508,0.0901,67042.0,67040.0,0.83204817]
[1729993667752,0.000738,67045.0,67040.0,0.60964638]
[1729993667980,0.000738,67045.0,67040.0,0.63264638]
[1729993668186,0.000738,67045.0,67040.0,0.53426982]
[1729993668634,0.000738,67045.0,67040.0,0.63264638]
[1729993669050,0.000738,67045.0,67040.0,0.74264638]
[1729993669235,0.000738,67045.0,67040.0,0.64426982]
[1729993669473,0.000738,67045.0,67040.0,0.74264638]
[1729993670376,0.000738,67045.0,67040.0,0.74464638]
[1729993672643,0.000738,67045.0,67040.0,0.64426982]
[1729993673501,0.000738,67045.0,67040.0,0.74264638]
[1729993673717,0.000738,67045.0,67040.0,0.64426982]
[1729993675258,0.000738,67045.0,67040.0,0.74264638]
[1729993675472,0.000738,67045.0,67040.0,0.74464638]
[1729993675688,0.000738,67045.0,67040.0,0.63464638]
[1729993676569,0.000738,67045.0,67040.0,0.63264638]
[1729993678832,0.000738,67045.0,67040.0,0.63464638]
[1729993679931,0.000738,67045.0,67040.0,0.63264638]
[1729993680152,0.000738,67045.0,67040.0,0.63464638]
[1729993680362,1e-06,67041.0,67040.0,0.63464638]
[1729993680798,1e-06,67041.0,67040.0,0.63264638]
[1729993681238,1e-06,67041.0,67040.0,0.63464638]
[1729993681704,1e-06,67041.0,67040.0,0.63264638]
[1729993681917,1e-06,67041.0,67040.0,0.63464638]
[1729993682993,1e-06,67041.0,67040.0,0.53626982]
[1729993683417,1e-06,67041.0,67040.0,0.53426982]
[1729993684579,0.096201,67041.0,67040.0,0.40289326]
[1729993685030,0.10359499,67041.0,67040.0,0.40289326]
[1729993685299,0.096201,67041.0,67040.0,0.40289326]
[1729993685750,0.177301,67041.0,67040.0,0.40289326]
[1729993685957,0.177301,67041.0,67040.0,0.39966781]
[1729993686163,0.177301,67041.0,67040.0,0.30289326]
[1729993686427,0.18469401,67041.0,67040.0,0.29966781]
[1729993687966,0.18469401,67041.0,67040.0,0.39966781]
[1729993689495,0.18469401,67041.0,67040.0,0.249164]
[1729993689703,0.18469401,67041.0,67040.0,0.149164]
[1729993690372,0.18469401,67041.0,67040.0,0.150806]
[1729993702693,0.177301,67041.0,67040.0,0.150806]
[1729993706874,0.1846905,67041.0,67040.0,0.150806]
[1729993723152,0.177301,67041.0,67040.0,0.150806]